[Event "Early-Titled-Tuesday-Blitz-February-13-2024"]
[Site "Chess.com"]
[Date "2024.02.13"]
[Round "4"]
[White "Dyadya81"]
[Black "Statham_01"]
[Result "1-0"]
[WhiteElo "2816"]
[BlackElo "2584"]
[TimeControl "180+1"]
[EndTime "8:42:27 PST"]
[Termination "Dyadya81 won on time"]

1. e4 {[%clk 0:03:00.9]} 1... e5 {[%clk 0:02:59.4]} 2. Nf3 {[%clk 0:02:59.7]}
2... Nf6 {[%clk 0:02:59.9]} 3. Nc3 {[%clk 0:02:58.3]} 3... Nc6 {[%clk
0:02:59.8]} 4. d4 {[%clk 0:02:58.4]} 4... exd4 {[%clk 0:03:00.2]} 5. Nxd4 {[%clk
0:02:59.1]} 5... Nxe4 {[%clk 0:02:49.7]} 6. Nxe4 {[%clk 0:02:56.2]} 6... Qe7
{[%clk 0:02:48.3]} 7. Bd3 {[%clk 0:02:55.1]} 7... Nxd4 {[%clk 0:02:43.2]} 8. O-O
{[%clk 0:02:55.1]} 8... d5 {[%clk 0:02:37.2]} 9. Bc4 {[%clk 0:02:47.8]} 9...
dxc4 {[%clk 0:01:55.7]} 10. Qxd4 {[%clk 0:02:44.7]} 10... Be6 {[%clk 0:01:50.2]}
11. Bg5 {[%clk 0:02:37]} 11... Qd7 {[%clk 0:01:37.1]} 12. Qe5 {[%clk 0:02:32.7]}
12... Qd5 {[%clk 0:00:34.8]} 13. Qf4 {[%clk 0:02:10.4]} 13... Bd6 {[%clk
0:00:33.8]} 14. Nxd6+ {[%clk 0:02:08.8]} 14... Qxd6 {[%clk 0:00:33.5]} 15. Qh4
{[%clk 0:02:02.6]} 15... Qc6 {[%clk 0:00:16.7]} 16. Be7 {[%clk 0:01:58.2]} 16...
c3 {[%clk 0:00:14.3]} 17. b3 {[%clk 0:01:54.2]} 17... h6 {[%clk 0:00:14.5]} 18.
Bb4 {[%clk 0:01:50.1]} 18... f6 {[%clk 0:00:10.6]} 19. Rfe1 {[%clk 0:01:43.9]}
19... Kf7 {[%clk 0:00:09.7]} 20. Re3 {[%clk 0:01:44.3]} 20... Rad8 {[%clk
0:00:04.8]} 21. Rae1 {[%clk 0:01:43.2]} 21... Rhe8 {[%clk 0:00:04]} 22. Rxc3
{[%clk 0:01:42.6]} 22... Qd7 {[%clk 0:00:04.6]} 23. Qg3 {[%clk 0:01:40.1]} 23...
c6 {[%clk 0:00:04.3]} 24. h4 {[%clk 0:01:34.1]} 24... Bd5 {[%clk 0:00:03.9]} 25.
Rd1 {[%clk 0:01:32.3]} 25... b6 {[%clk 0:00:03.9]} 26. Rcd3 {[%clk 0:01:30.5]}
26... Qf5 {[%clk 0:00:04.3]} 27. c4 {[%clk 0:01:27.5]} 27... a5 {[%clk
0:00:04.6]} 28. Ba3 {[%clk 0:01:26.7]} 28... Re4 {[%clk 0:00:02.9]} 29. cxd5
{[%clk 0:01:25.9]} 29... Rde8 {[%clk 0:00:03.5]} 30. dxc6 {[%clk 0:01:18.1]}
30... g5 {[%clk 0:00:04]} 31. f3 {[%clk 0:01:06.6]} 31... Rxh4 {[%clk
0:00:01.9]} 32. c7 {[%clk 0:01:05.3]} 32... Qb5 {[%clk 0:00:01.4]} 33. Qd6
{[%clk 0:01:00.6]} 33... Kg6 {[%clk 0:00:01.4]} 34. Qd5 {[%clk 0:00:55.2]} 34...
Qxd5 {[%clk 0:00:01.5]} 35. Rxd5 {[%clk 0:00:56.1]} 1-0

[Event "Early-Titled-Tuesday-Blitz-February-13-2024"]
[Site "Chess.com"]
[Date "2024.02.13"]
[Round "4"]
[White "Aslanov_Umid"]
[Black "N4700000"]
[Result "1-0"]
[WhiteElo "2676"]
[BlackElo "2450"]
[TimeControl "180+1"]
[EndTime "8:42:27 PST"]
[Termination "Aslanov_Umid won on time"]

1. e4 {[%clk 0:03:00.9]} 1... d5 {[%clk 0:03:00.1]} 2. exd5 {[%clk 0:03:00.9]}
2... Nf6 {[%clk 0:03:00.5]} 3. d4 {[%clk 0:03:01.1]} 3... Bg4 {[%clk 0:03:00.4]}
4. Be2 {[%clk 0:03:00.9]} 4... Bxe2 {[%clk 0:02:58.8]} 5. Nxe2 {[%clk
0:03:01.8]} 5... Qxd5 {[%clk 0:02:55.9]} 6. O-O {[%clk 0:03:02.1]} 6... e6
{[%clk 0:02:48.2]} 7. c3 {[%clk 0:02:55]} 7... c5 {[%clk 0:02:42]} 8. Bf4 {[%clk
0:02:48.7]} 8... Nc6 {[%clk 0:02:40.4]} 9. Qa4 {[%clk 0:02:44.4]} 9... a6 {[%clk
0:02:21.2]} 10. c4 {[%clk 0:02:38]} 10... Qh5 {[%clk 0:02:18.6]} 11. Nbc3 {[%clk
0:02:15.8]} 11... Be7 {[%clk 0:02:10.5]} 12. Rad1 {[%clk 0:01:46.5]} 12... O-O
{[%clk 0:01:23]} 13. d5 {[%clk 0:01:46.7]} 13... Nd4 {[%clk 0:01:19.6]} 14. Rfe1
{[%clk 0:00:50.8]} 14... b5 {[%clk 0:01:14]} 15. Qa5 {[%clk 0:00:40.3]} 15...
Bd8 {[%clk 0:01:03.5]} 16. Bc7 {[%clk 0:00:40.2]} 16... Nxe2+ {[%clk 0:00:51.2]}
17. Nxe2 {[%clk 0:00:34.5]} 17... exd5 {[%clk 0:00:47]} 18. cxb5 {[%clk
0:00:31.8]} 18... Bxc7 {[%clk 0:00:45.7]} 19. Qxc7 {[%clk 0:00:32.7]} 19... axb5
{[%clk 0:00:45.8]} 20. Qxc5 {[%clk 0:00:33.3]} 20... Rxa2 {[%clk 0:00:41.9]} 21.
Qxb5 {[%clk 0:00:32.3]} 21... Qh4 {[%clk 0:00:24.1]} 22. Ng3 {[%clk 0:00:29.1]}
22... Ra4 {[%clk 0:00:09]} 23. Qc5 {[%clk 0:00:20.8]} 23... Rc4 {[%clk
0:00:08.4]} 24. Qe7 {[%clk 0:00:19.9]} 24... Rb4 {[%clk 0:00:05.4]} 25. Nf5
{[%clk 0:00:19.2]} 25... Qg4 {[%clk 0:00:03.8]} 26. h3 {[%clk 0:00:18.3]} 1-0

[Event "Early-Titled-Tuesday-Blitz-February-13-2024"]
[Site "Chess.com"]
[Date "2024.02.13"]
[Round "4"]
[White "WindWhistler11"]
[Black "SpongeBob_03"]
[Result "1-0"]
[WhiteElo "2501"]
[BlackElo "2223"]
[TimeControl "180+1"]
[EndTime "8:42:29 PST"]
[Termination "WindWhistler11 won on time"]

1. c4 {[%clk 0:03:00.9]} 1... e6 {[%clk 0:02:55.4]} 2. g3 {[%clk 0:03:00.8]}
2... c5 {[%clk 0:02:48]} 3. Bg2 {[%clk 0:03:01.5]} 3... Nf6 {[%clk 0:02:46.7]}
4. b3 {[%clk 0:03:02.1]} 4... Nc6 {[%clk 0:02:47.1]} 5. Bb2 {[%clk 0:03:02.8]}
5... Be7 {[%clk 0:02:47.7]} 6. e3 {[%clk 0:03:03.5]} 6... b6 {[%clk 0:02:48.1]}
7. Nc3 {[%clk 0:03:03.2]} 7... Bb7 {[%clk 0:02:48.5]} 8. Nf3 {[%clk 0:03:03.5]}
8... Rc8 {[%clk 0:02:48.8]} 9. Ne2 {[%clk 0:03:03.7]} 9... O-O {[%clk
0:02:47.6]} 10. O-O {[%clk 0:03:04.2]} 10... d5 {[%clk 0:02:44.1]} 11. a3 {[%clk
0:02:54.9]} 11... dxc4 {[%clk 0:02:26.9]} 12. bxc4 {[%clk 0:02:54.8]} 12... Ba6
{[%clk 0:02:26]} 13. Qc2 {[%clk 0:02:52.5]} 13... Na5 {[%clk 0:02:25.4]} 14. d3
{[%clk 0:02:51.6]} 14... Qc7 {[%clk 0:02:20.9]} 15. Be5 {[%clk 0:02:49.1]} 15...
Bd6 {[%clk 0:02:20.9]} 16. Bc3 {[%clk 0:02:49.1]} 16... Nc6 {[%clk 0:02:17.9]}
17. Rab1 {[%clk 0:02:47.3]} 17... Rfd8 {[%clk 0:02:17.1]} 18. Qb2 {[%clk
0:02:44.2]} 18... Be7 {[%clk 0:02:15.7]} 19. Rfd1 {[%clk 0:02:44.8]} 19... Rd7
{[%clk 0:01:59.7]} 20. Qc2 {[%clk 0:02:28.8]} 20... Rcd8 {[%clk 0:01:57.3]} 21.
h4 {[%clk 0:02:28.2]} 21... Ng4 {[%clk 0:01:43.3]} 22. Nf4 {[%clk 0:02:15.7]}
22... Bf6 {[%clk 0:01:38.1]} 23. Be1 {[%clk 0:02:08.5]} 23... Nge5 {[%clk
0:01:27.1]} 24. Nh2 {[%clk 0:02:04.9]} 24... g5 {[%clk 0:01:24.4]} 25. Nh5
{[%clk 0:02:03.4]} 25... Bh8 {[%clk 0:01:22.6]} 26. hxg5 {[%clk 0:01:59.7]}
26... Rxd3 {[%clk 0:01:13.1]} 27. Rxd3 {[%clk 0:01:55.2]} 27... Rxd3 {[%clk
0:01:12.4]} 28. Be4 {[%clk 0:01:54.2]} 28... Bxc4 {[%clk 0:01:02.4]} 29. f4
{[%clk 0:01:37.3]} 29... Rxe3 {[%clk 0:01:00.1]} 30. fxe5 {[%clk 0:01:22.9]}
30... Nxe5 {[%clk 0:00:37.6]} 31. Bf2 {[%clk 0:01:18.8]} 31... Re2 {[%clk
0:00:25.1]} 32. Bxh7+ {[%clk 0:01:17.1]} 32... Kf8 {[%clk 0:00:23.7]} 33. Qc1
{[%clk 0:01:14]} 33... Rxf2 {[%clk 0:00:20.6]} 34. Kxf2 {[%clk 0:01:09.5]} 34...
Bd3 {[%clk 0:00:19.4]} 35. g6 {[%clk 0:01:03.9]} 35... fxg6 {[%clk 0:00:16.3]}
36. Qh6+ {[%clk 0:01:04.4]} 36... Ke8 {[%clk 0:00:14.5]} 37. Re1 {[%clk
0:01:01.3]} 37... Qf7+ {[%clk 0:00:10.4]} 38. Kg2 {[%clk 0:00:58.5]} 38... Bc4
{[%clk 0:00:06.2]} 39. Rxe5 {[%clk 0:00:53.3]} 39... Bxe5 {[%clk 0:00:05.6]} 40.
Bxg6 {[%clk 0:00:53.1]} 40... Bd5+ {[%clk 0:00:06.1]} 41. Kh3 {[%clk 0:00:53.2]}
1-0

[Event "Early-Titled-Tuesday-Blitz-February-13-2024"]
[Site "Chess.com"]
[Date "2024.02.13"]
[Round "4"]
[White "Jospem"]
[Black "AlmasRakhmatullaev"]
[Result "1-0"]
[WhiteElo "3058"]
[BlackElo "2875"]
[TimeControl "180+1"]
[EndTime "8:42:30 PST"]
[Termination "Jospem won by checkmate"]

1. e4 {[%clk 0:03:00.9]} 1... e5 {[%clk 0:02:59.1]} 2. Nf3 {[%clk 0:03:01.4]}
2... Nc6 {[%clk 0:02:57.2]} 3. Nc3 {[%clk 0:03:01.8]} 3... Nf6 {[%clk
0:02:50.7]} 4. h3 {[%clk 0:03:01.8]} 4... d5 {[%clk 0:02:37.1]} 5. Bb5 {[%clk
0:03:01.2]} 5... d4 {[%clk 0:02:26.5]} 6. Ne2 {[%clk 0:02:59.2]} 6... Bd6 {[%clk
0:02:25.8]} 7. d3 {[%clk 0:02:57.6]} 7... Bd7 {[%clk 0:02:23.7]} 8. a3 {[%clk
0:02:52.8]} 8... Ne7 {[%clk 0:02:23.7]} 9. Bc4 {[%clk 0:02:52.9]} 9... Ng6
{[%clk 0:02:21.3]} 10. Ng3 {[%clk 0:02:53.1]} 10... h6 {[%clk 0:02:20.2]} 11.
Nh2 {[%clk 0:02:45.2]} 11... Be6 {[%clk 0:02:17.6]} 12. Ng4 {[%clk 0:02:34.8]}
12... Bxc4 {[%clk 0:01:47.7]} 13. dxc4 {[%clk 0:02:35.7]} 13... Nh7 {[%clk
0:01:43.3]} 14. Nf5 {[%clk 0:02:34.8]} 14... Bf8 {[%clk 0:01:41.2]} 15. Qd3
{[%clk 0:02:04.2]} 15... Qd7 {[%clk 0:01:37.8]} 16. Bd2 {[%clk 0:01:38.7]} 16...
O-O-O {[%clk 0:01:37.1]} 17. O-O-O {[%clk 0:01:38.9]} 17... f6 {[%clk
0:01:26.6]} 18. g3 {[%clk 0:01:34.4]} 18... Ng5 {[%clk 0:01:21.8]} 19. Bxg5
{[%clk 0:01:25.8]} 19... hxg5 {[%clk 0:01:22]} 20. Kb1 {[%clk 0:01:18.3]} 20...
c6 {[%clk 0:01:01.2]} 21. c3 {[%clk 0:01:16.8]} 21... c5 {[%clk 0:00:42.8]} 22.
cxd4 {[%clk 0:01:17.1]} 22... exd4 {[%clk 0:00:39.6]} 23. Qb3 {[%clk 0:01:16.5]}
23... Qe6 {[%clk 0:00:36.7]} 24. f3 {[%clk 0:01:15.1]} 24... Ne7 {[%clk
0:00:32]} 25. Nxe7+ {[%clk 0:01:11.6]} 25... Bxe7 {[%clk 0:00:32.9]} 26. Nf2
{[%clk 0:01:00.8]} 26... Bd6 {[%clk 0:00:32.9]} 27. g4 {[%clk 0:01:01.3]} 27...
g6 {[%clk 0:00:30.5]} 28. Ka2 {[%clk 0:01:01.1]} 28... Rh7 {[%clk 0:00:30.5]}
29. e5 {[%clk 0:00:58.2]} 29... Bxe5 {[%clk 0:00:30.3]} 30. Rde1 {[%clk
0:00:56]} 30... Qc6 {[%clk 0:00:29.6]} 31. Nd3 {[%clk 0:00:55.5]} 31... Bd6
{[%clk 0:00:27.7]} 32. Re6 {[%clk 0:00:51.5]} 32... Qxf3 {[%clk 0:00:27.2]} 33.
Rhe1 {[%clk 0:00:49.9]} 33... Rxh3 {[%clk 0:00:27.6]} 34. Qb5 {[%clk 0:00:42.7]}
34... Qxd3 {[%clk 0:00:22.6]} 35. Rxd6 {[%clk 0:00:42.9]} 35... Rxd6 {[%clk
0:00:12.9]} 36. Re8+ {[%clk 0:00:41.2]} 36... Rd8 {[%clk 0:00:08.6]} 37. Qxc5+
{[%clk 0:00:40.8]} 37... Kd7 {[%clk 0:00:08.6]} 38. Re7# {[%clk 0:00:41.3]} 1-0

[Event "Early-Titled-Tuesday-Blitz-February-13-2024"]
[Site "Chess.com"]
[Date "2024.02.13"]
[Round "4"]
[White "Njal28"]
[Black "Willhaven3"]
[Result "1-0"]
[WhiteElo "2983"]
[BlackElo "2619"]
[TimeControl "180+1"]
[EndTime "8:42:30 PST"]
[Termination "Njal28 won on time"]

1. e4 {[%clk 0:03:00.9]} 1... c5 {[%clk 0:03:00]} 2. Nf3 {[%clk 0:03:00.9]} 2...
Nc6 {[%clk 0:02:59.1]} 3. b4 {[%clk 0:02:58.5]} 3... e5 {[%clk 0:02:57.7]} 4. b5
{[%clk 0:02:57.7]} 4... Nd4 {[%clk 0:02:56.6]} 5. Nxe5 {[%clk 0:02:58.1]} 5...
Qe7 {[%clk 0:02:56.6]} 6. Nc4 {[%clk 0:02:56.9]} 6... Qxe4+ {[%clk 0:02:55.8]}
7. Ne3 {[%clk 0:02:57.2]} 7... d5 {[%clk 0:02:33.4]} 8. Nc3 {[%clk 0:02:57]}
8... Qe5 {[%clk 0:02:30.4]} 9. Nxd5 {[%clk 0:02:51.8]} 9... Be6 {[%clk
0:02:25.9]} 10. Nc3 {[%clk 0:02:25.4]} 10... O-O-O {[%clk 0:02:23.8]} 11. Be2
{[%clk 0:02:20.6]} 11... f5 {[%clk 0:02:22.9]} 12. g3 {[%clk 0:01:33]} 12... g5
{[%clk 0:02:14.7]} 13. O-O {[%clk 0:01:05]} 13... f4 {[%clk 0:02:01.4]} 14. Bg4
{[%clk 0:01:05.6]} 14... fxe3 {[%clk 0:01:49.7]} 15. fxe3 {[%clk 0:01:06]} 15...
Nf5 {[%clk 0:01:37.9]} 16. b6 {[%clk 0:01:06]} 16... axb6 {[%clk 0:01:32.4]} 17.
Bb2 {[%clk 0:00:59.4]} 17... Nxe3 {[%clk 0:00:54.3]} 18. Bxe6+ {[%clk
0:00:58.6]} 18... Qxe6 {[%clk 0:00:55.2]} 19. Qe2 {[%clk 0:00:59.1]} 19... Bg7
{[%clk 0:00:48.6]} 20. dxe3 {[%clk 0:00:57.8]} 20... Ne7 {[%clk 0:00:45.2]} 21.
Rab1 {[%clk 0:00:53.9]} 21... Nc6 {[%clk 0:00:37.8]} 22. Na4 {[%clk 0:00:45.5]}
22... Nd4 {[%clk 0:00:19.2]} 23. Bxd4 {[%clk 0:00:31.3]} 23... Bxd4 {[%clk
0:00:17.4]} 24. Nxb6+ {[%clk 0:00:31.2]} 24... Kb8 {[%clk 0:00:17.3]} 25. Nc4
{[%clk 0:00:29.3]} 25... Rhe8 {[%clk 0:00:15.6]} 26. Rb3 {[%clk 0:00:29.7]}
26... Bh8 {[%clk 0:00:05.7]} 27. Rfb1 {[%clk 0:00:29.7]} 27... Rd7 {[%clk
0:00:05.9]} 28. Qf3 {[%clk 0:00:21.6]} 28... Qe7 {[%clk 0:00:01.4]} 29. Na5
{[%clk 0:00:20.8]} 1-0

[Event "Early-Titled-Tuesday-Blitz-February-13-2024"]
[Site "Chess.com"]
[Date "2024.02.13"]
[Round "4"]
[White "regenda"]
[Black "BursaBBSatranc"]
[Result "0-1"]
[WhiteElo "2109"]
[BlackElo "2682"]
[TimeControl "180+1"]
[EndTime "8:42:30 PST"]
[Termination "BursaBBSatranc won by checkmate"]

1. e4 {[%clk 0:02:59.3]} 1... e5 {[%clk 0:03:00]} 2. Nf3 {[%clk 0:02:58.6]} 2...
Nf6 {[%clk 0:02:59.7]} 3. Nc3 {[%clk 0:02:57.9]} 3... Nc6 {[%clk 0:03:00]} 4.
Bb5 {[%clk 0:02:58]} 4... Nd4 {[%clk 0:02:58.2]} 5. O-O {[%clk 0:02:53.6]} 5...
Nxb5 {[%clk 0:02:54.3]} 6. Nxb5 {[%clk 0:02:54.5]} 6... d6 {[%clk 0:02:40]} 7.
d4 {[%clk 0:02:54.2]} 7... exd4 {[%clk 0:02:31.5]} 8. Re1 {[%clk 0:02:45]} 8...
Be7 {[%clk 0:02:29.1]} 9. Qxd4 {[%clk 0:02:40.1]} 9... O-O {[%clk 0:02:25.7]}
10. Bg5 {[%clk 0:02:39.2]} 10... Bg4 {[%clk 0:02:13.4]} 11. Nh4 {[%clk
0:02:24.8]} 11... h6 {[%clk 0:01:57.9]} 12. Bd2 {[%clk 0:02:22]} 12... Nd7
{[%clk 0:01:42.6]} 13. Nf5 {[%clk 0:02:09.9]} 13... Bxf5 {[%clk 0:01:42]} 14.
exf5 {[%clk 0:02:10.8]} 14... Bf6 {[%clk 0:01:42.4]} 15. Qg4 {[%clk 0:02:06.9]}
15... Kh7 {[%clk 0:01:37.6]} 16. c3 {[%clk 0:01:51.9]} 16... Ne5 {[%clk
0:01:35.1]} 17. Qh3 {[%clk 0:01:50]} 17... Qd7 {[%clk 0:01:20.4]} 18. Nd4 {[%clk
0:01:44.2]} 18... Rfe8 {[%clk 0:01:20.5]} 19. g4 {[%clk 0:01:37.1]} 19... Nc4
{[%clk 0:01:09]} 20. Bf4 {[%clk 0:01:19.8]} 20... Kg8 {[%clk 0:00:55.7]} 21. b3
{[%clk 0:01:16.4]} 21... Nb6 {[%clk 0:00:50.8]} 22. Bd2 {[%clk 0:01:13.8]} 22...
Rxe1+ {[%clk 0:00:46.7]} 23. Rxe1 {[%clk 0:01:13.4]} 23... Re8 {[%clk
0:00:47.6]} 24. Qf3 {[%clk 0:01:10.9]} 24... Rxe1+ {[%clk 0:00:46]} 25. Bxe1
{[%clk 0:01:10.9]} 25... Bxd4 {[%clk 0:00:42.7]} 26. cxd4 {[%clk 0:01:10.4]}
26... Qc6 {[%clk 0:00:37.5]} 27. Qxc6 {[%clk 0:01:05]} 27... bxc6 {[%clk
0:00:38.4]} 28. Bd2 {[%clk 0:01:04.4]} 28... Nd5 {[%clk 0:00:33.1]} 29. Kg2
{[%clk 0:01:02.3]} 29... f6 {[%clk 0:00:33]} 30. Kf3 {[%clk 0:01:02.7]} 30...
Kf7 {[%clk 0:00:33]} 31. Ke4 {[%clk 0:01:03.1]} 31... a6 {[%clk 0:00:29.9]} 32.
Kd3 {[%clk 0:01:02.8]} 32... Ke7 {[%clk 0:00:30.1]} 33. Kc4 {[%clk 0:01:03.1]}
33... Kd7 {[%clk 0:00:28.2]} 34. a4 {[%clk 0:01:01.8]} 34... Nb6+ {[%clk
0:00:24.3]} 35. Kd3 {[%clk 0:01:01.2]} 35... Ke7 {[%clk 0:00:20]} 36. Ba5 {[%clk
0:00:59]} 36... Nd5 {[%clk 0:00:20]} 37. Bd2 {[%clk 0:00:58.5]} 37... Ke8 {[%clk
0:00:19.9]} 38. Kc4 {[%clk 0:00:58.7]} 38... Kd7 {[%clk 0:00:20.2]} 39. h3
{[%clk 0:00:57.3]} 39... Ne7 {[%clk 0:00:19.1]} 40. Kb4 {[%clk 0:00:56.2]} 40...
Kc8 {[%clk 0:00:19]} 41. Ka5 {[%clk 0:00:55.1]} 41... Kb7 {[%clk 0:00:19.2]} 42.
h4 {[%clk 0:00:48.1]} 42... c5 {[%clk 0:00:17.7]} 43. dxc5 {[%clk 0:00:46.5]}
43... dxc5 {[%clk 0:00:16.7]} 44. b4 {[%clk 0:00:39.2]} 44... Nc6# {[%clk
0:00:17.6]} 0-1

[Event "Early-Titled-Tuesday-Blitz-February-13-2024"]
[Site "Chess.com"]
[Date "2024.02.13"]
[Round "4"]
[White "HamedWafa4"]
[Black "Anton_Demchenko"]
[Result "0-1"]
[WhiteElo "2758"]
[BlackElo "2941"]
[TimeControl "180+1"]
[EndTime "8:42:31 PST"]
[Termination "Anton_Demchenko won by resignation"]

1. e4 {[%clk 0:03:00.9]} 1... e5 {[%clk 0:02:59.4]} 2. Nf3 {[%clk 0:03:00.8]}
2... Nc6 {[%clk 0:02:58.4]} 3. Nc3 {[%clk 0:03:01.4]} 3... Nf6 {[%clk
0:02:58.3]} 4. Bb5 {[%clk 0:03:01.1]} 4... Bd6 {[%clk 0:02:57.2]} 5. O-O {[%clk
0:03:00.7]} 5... O-O {[%clk 0:02:56]} 6. d3 {[%clk 0:03:00.9]} 6... Re8 {[%clk
0:02:53.3]} 7. Ne2 {[%clk 0:03:00.2]} 7... a6 {[%clk 0:02:50]} 8. Bxc6 {[%clk
0:03:00.2]} 8... dxc6 {[%clk 0:02:50]} 9. Ng3 {[%clk 0:03:00.8]} 9... Nd7 {[%clk
0:02:46.8]} 10. h3 {[%clk 0:02:56.8]} 10... Nf8 {[%clk 0:02:44]} 11. Nd2 {[%clk
0:02:52]} 11... b5 {[%clk 0:02:31.9]} 12. Nf5 {[%clk 0:02:48.4]} 12... Ne6
{[%clk 0:02:12.8]} 13. Re1 {[%clk 0:02:40.7]} 13... Bf8 {[%clk 0:02:10.7]} 14.
Nf1 {[%clk 0:02:39.3]} 14... f6 {[%clk 0:02:07.3]} 15. a4 {[%clk 0:02:30.4]}
15... Bb7 {[%clk 0:01:59.8]} 16. b3 {[%clk 0:02:27.6]} 16... Qd7 {[%clk
0:01:57.5]} 17. N1g3 {[%clk 0:02:20.1]} 17... Rad8 {[%clk 0:01:53.5]} 18. h4
{[%clk 0:02:15.9]} 18... g6 {[%clk 0:01:49.3]} 19. Ne3 {[%clk 0:02:15.5]} 19...
h5 {[%clk 0:01:45.4]} 20. Qf3 {[%clk 0:02:13.8]} 20... Qf7 {[%clk 0:01:39.1]}
21. Bb2 {[%clk 0:02:13.5]} 21... Bc5 {[%clk 0:01:22.9]} 22. Ne2 {[%clk
0:02:06.1]} 22... Kg7 {[%clk 0:01:19.3]} 23. Qg3 {[%clk 0:02:04.9]} 23... Kh7
{[%clk 0:01:15.4]} 24. Qf3 {[%clk 0:02:02.5]} 24... Rf8 {[%clk 0:00:56]} 25. Kh2
{[%clk 0:01:56.7]} 25... Rd7 {[%clk 0:00:52.8]} 26. Rg1 {[%clk 0:01:56.6]} 26...
Nd4 {[%clk 0:00:48.7]} 27. Nxd4 {[%clk 0:01:48.5]} 27... exd4 {[%clk 0:00:49.3]}
28. Nf1 {[%clk 0:01:48.5]} 28... f5 {[%clk 0:00:50]} 29. exf5 {[%clk 0:01:46.6]}
29... Qxf5 {[%clk 0:00:49.1]} 30. Qxf5 {[%clk 0:01:45.5]} 30... Rxf5 {[%clk
0:00:45.7]} 31. f3 {[%clk 0:01:43.7]} 31... Bd6+ {[%clk 0:00:45.3]} 32. g3
{[%clk 0:01:25.2]} 32... Rxf3 {[%clk 0:00:41.5]} 33. Nd2 {[%clk 0:01:20.4]}
33... Rf2+ {[%clk 0:00:38.1]} 34. Rg2 {[%clk 0:01:20.9]} 34... Rxg2+ {[%clk
0:00:38.4]} 35. Kxg2 {[%clk 0:01:21.8]} 35... c5+ {[%clk 0:00:39]} 36. Kh2
{[%clk 0:01:20.7]} 36... Re7 {[%clk 0:00:37]} 37. Ne4 {[%clk 0:01:18.9]} 37...
Bxe4 {[%clk 0:00:35.4]} 38. dxe4 {[%clk 0:01:19.8]} 38... Rxe4 {[%clk
0:00:35.4]} 39. axb5 {[%clk 0:01:20.7]} 39... axb5 {[%clk 0:00:34.5]} 40. Rg1
{[%clk 0:01:20]} 40... Kg8 {[%clk 0:00:22.7]} 41. Rg2 {[%clk 0:01:16.6]} 41...
Kf7 {[%clk 0:00:22.4]} 42. Rf2+ {[%clk 0:01:16.8]} 42... Ke6 {[%clk 0:00:22.6]}
43. Kg2 {[%clk 0:01:17.5]} 43... Re3 {[%clk 0:00:20.5]} 44. Rf3 {[%clk
0:01:16.4]} 44... Kd5 {[%clk 0:00:21.1]} 45. Rxe3 {[%clk 0:01:16.1]} 45... dxe3
{[%clk 0:00:21.3]} 46. Kf3 {[%clk 0:01:16.9]} 46... c4 {[%clk 0:00:14.4]} 47.
Bc3 {[%clk 0:01:14.8]} 47... Bc5 {[%clk 0:00:13.2]} 48. Bf6 {[%clk 0:01:10.9]}
48... cxb3 {[%clk 0:00:11.7]} 49. cxb3 {[%clk 0:01:11.8]} 49... Bd4 {[%clk
0:00:12.2]} 50. Be7 {[%clk 0:01:11.3]} 50... c5 {[%clk 0:00:12.6]} 51. Bg5
{[%clk 0:01:09.9]} 51... c4 {[%clk 0:00:12.9]} 52. bxc4+ {[%clk 0:01:10.6]}
52... Kxc4 {[%clk 0:00:13.6]} 0-1

[Event "Early-Titled-Tuesday-Blitz-February-13-2024"]
[Site "Chess.com"]
[Date "2024.02.13"]
[Round "4"]
[White "Slovineanu"]
[Black "Agibileg"]
[Result "0-1"]
[WhiteElo "2434"]
[BlackElo "2721"]
[TimeControl "180+1"]
[EndTime "8:42:36 PST"]
[Termination "Agibileg won on time"]

1. d4 {[%clk 0:03:00.9]} 1... Nf6 {[%clk 0:02:59.3]} 2. Nf3 {[%clk 0:03:01]}
2... e6 {[%clk 0:02:58.1]} 3. c4 {[%clk 0:03:00.1]} 3... c5 {[%clk 0:02:58.4]}
4. d5 {[%clk 0:02:59.8]} 4... d6 {[%clk 0:02:58.2]} 5. Nc3 {[%clk 0:02:59.4]}
5... g6 {[%clk 0:02:58.2]} 6. e4 {[%clk 0:02:56.9]} 6... Bg7 {[%clk 0:02:57.8]}
7. Be2 {[%clk 0:02:56.2]} 7... O-O {[%clk 0:02:58.1]} 8. Be3 {[%clk 0:02:55.9]}
8... a6 {[%clk 0:02:58]} 9. a4 {[%clk 0:02:51.1]} 9... e5 {[%clk 0:02:56.8]} 10.
Nd2 {[%clk 0:02:45.1]} 10... a5 {[%clk 0:02:55.9]} 11. Nb5 {[%clk 0:02:41.9]}
11... Na6 {[%clk 0:02:51.1]} 12. h3 {[%clk 0:02:39.2]} 12... Nb4 {[%clk
0:02:50.8]} 13. g4 {[%clk 0:02:30.8]} 13... Kh8 {[%clk 0:02:44.2]} 14. Ra3
{[%clk 0:02:27.6]} 14... Ng8 {[%clk 0:02:44.5]} 15. h4 {[%clk 0:01:59.5]} 15...
f5 {[%clk 0:02:42.8]} 16. Bg5 {[%clk 0:01:59.5]} 16... Qd7 {[%clk 0:02:38.4]}
17. gxf5 {[%clk 0:01:46.9]} 17... gxf5 {[%clk 0:02:37.4]} 18. exf5 {[%clk
0:01:47.5]} 18... Qxf5 {[%clk 0:02:34.5]} 19. Rf3 {[%clk 0:01:42.5]} 19... Qg6
{[%clk 0:02:24.3]} 20. Be7 {[%clk 0:01:05.1]} 20... Rxf3 {[%clk 0:02:14]} 21.
Nxf3 {[%clk 0:01:04.9]} 21... Nc2+ {[%clk 0:02:04.6]} 22. Kf1 {[%clk 0:00:51.4]}
22... Nxe7 {[%clk 0:02:03.5]} 23. h5 {[%clk 0:00:40.5]} 23... Qf6 {[%clk
0:01:39.1]} 24. Qxc2 {[%clk 0:00:39.1]} 24... Bf5 {[%clk 0:01:37.5]} 25. Bd3
{[%clk 0:00:34.5]} 25... Bxd3+ {[%clk 0:01:32.9]} 26. Qxd3 {[%clk 0:00:34.5]}
26... Rf8 {[%clk 0:01:33.4]} 27. Rh3 {[%clk 0:00:25.5]} 27... Bh6 {[%clk
0:01:25.2]} 28. Nc3 {[%clk 0:00:22.1]} 28... Nf5 {[%clk 0:01:17.8]} 29. Ne4
{[%clk 0:00:22]} 29... Qf7 {[%clk 0:01:17]} 30. Qe2 {[%clk 0:00:10.7]} 30... Nd4
{[%clk 0:01:13]} 31. Nxd4 {[%clk 0:00:10.1]} 31... cxd4 {[%clk 0:01:13.9]} 32.
Rg3 {[%clk 0:00:08.3]} 32... Be3 {[%clk 0:01:07.8]} 33. Kg2 {[%clk 0:00:06]}
33... Qf5 {[%clk 0:01:04.1]} 34. f3 {[%clk 0:00:03.5]} 34... Qxh5 {[%clk
0:00:57.7]} 35. Nxd6 {[%clk 0:00:03.3]} 35... Bf4 {[%clk 0:00:54.6]} 36. Rg4
{[%clk 0:00:02.9]} 36... Qh2+ {[%clk 0:00:52.4]} 37. Kf1 {[%clk 0:00:03.2]}
37... Qh1+ {[%clk 0:00:48]} 38. Rg1 {[%clk 0:00:03.2]} 38... Qh5 {[%clk
0:00:45.3]} 39. Ne4 {[%clk 0:00:02.5]} 39... Be3 {[%clk 0:00:45.3]} 0-1